fUSD/lending_fUSD_20240720
["ID","MTS","AMOUNT","RATE_DAILY","PERIOD"]
[332709969,1721473484440,-152.0,0.0004473,31]
[332709970,1721473484466,-2000.0,0.000448,60]
[332709971,1721473484491,-499999.0,0.000448,60]
[332709972,1721473484517,-15292.65406305,0.000448,30]
[332709973,1721473484546,-335752.45580794,0.000448,60]
[332709974,1721473484574,-2711.94830295,0.000448,60]
[332709975,1721473484599,-84519.74649875,0.000448,60]
[332709976,1721473484625,-4562.76634424,0.000448,60]
[332709977,1721473484650,-940.58773435,0.000448,60]
[332709978,1721473484675,-2932.30133253,0.000448,60]
[332709979,1721473484700,-375.76274978,0.000448,60]
[332709980,1721473484727,-499999.0,0.000448,60]
[332709981,1721473484754,-416762.09134457,0.000448,60]
[332709982,1721473484780,-463794.7709717,0.0004488,30]
[332709983,1721473484808,-391019.99999953,0.000449,30]
[332709984,1721473484834,-105329.45150165,0.000449,120]
[332709985,1721473484859,-2440.0,0.000449,30]
[332709986,1721473484883,-45940.42344098,0.0004498,30]
[332709987,1721473484907,-410.0,0.00044986,120]
[332709988,1721473484933,-50000.0,0.00045,35]
[332709989,1721473484959,-150.0,0.00045,85]
[332709990,1721473484983,-1495.0852801,0.00045,90]
[332709991,1721473485010,-392.60546334,0.00045,45]
[332709992,1721473485036,-197.99651685,0.00045,30]
[332709993,1721473485062,-1334.98449797,0.00045,120]
[332709994,1721473485086,-2849.31159813,0.00045,120]
[332709995,1721473485111,-1000000.0,0.00045,120]
[332709996,1721473485419,-67808.39059046,0.00045,30]
[332709997,1721473485444,-687.00616142,0.00045,35]
[332709998,1721473485469,-880.31065,0.00045,120]
[332709999,1721473485495,-286.88535079,0.00045,120]
[332710000,1721473485520,-2042.94262361,0.00045,30]
[332710001,1721473485545,-758.6990943,0.00045,120]
[332710002,1721473485572,-2000.0,0.00045,60]
[332710003,1721473485598,-1240.323,0.00045,120]
[332710004,1721473485622,-150.73916196,0.00045,120]
[332710005,1721473485647,-1000.0,0.00045,120]
[332710006,1721473485672,-1000.0,0.00045,120]
[332710007,1721473485700,-1000.0,0.00045,120]
[332710008,1721473485746,-1025.94,0.00045,120]
[332710009,1721473485771,-412.28662316,0.00045,120]
[332710010,1721473485795,-20000.0,0.00045,30]
[332710011,1721473485819,-20000.0,0.00045,60]
[332710012,1721473485843,-37466.18082063,0.00045,90]
[332710013,1721473485867,-485.41807005,0.00045,120]
[332710014,1721473485891,-1000000.0,0.00045,120]
[332710015,1721473485916,-500000.0,0.00045,120]
[332710016,1721473485942,-500000.0,0.00045,120]
[332710017,1721473485968,-500000.0,0.00045,120]
[332710018,1721473485992,-500000.0,0.00045,120]
[332710019,1721473486017,-500000.0,0.00045,120]
[332710020,1721473486043,-500000.0,0.00045,120]
[332710021,1721473486068,-500000.0,0.00045,120]
[332710022,1721473486093,-142336.88403542,0.00045,120]
[332710024,1721473498241,-357663.11596458,0.00045,120]
[332710025,1721473498268,-500000.0,0.00045,120]
[332710026,1721473498292,-595.6921161,0.00045,120]
[332710027,1721473498318,-500.0,0.00045,120]
[332710028,1721473498343,-2122.0,0.00045,120]
[332710029,1721473498370,-1581.0,0.00045,120]
[332710030,1721473498395,-2500.0,0.00045,120]
[332710031,1721473498419,-2500.0,0.00045,120]
[332710032,1721473498446,-191.9735997,0.00045,120]
[332710033,1721473498472,-500000.0,0.00045,120]
[332710034,1721473498496,-313.04286776,0.00045,60]
[332710035,1721473498521,-500.0,0.00045,120]
[332710036,1721473498547,-1139.53,0.00045,30]
[332710037,1721473498575,-10000.0,0.00045,120]
[332710038,1721473498601,-157.44091322,0.00045,120]
[332710039,1721473498628,-150.0,0.00045,120]
[332710040,1721473498655,-1813.35441961,0.00045,120]
[332710041,1721473498680,-200.0,0.00045,120]
[332710042,1721473498705,-2856.73,0.00045,120]
[332710043,1721473498731,-362.0,0.00045,120]
[332710044,1721473498758,-2400.0,0.00045,120]
[332710045,1721473498783,-935.0876277,0.00045,120]
[332710046,1721473498807,-172.8034583,0.00045,30]
[332710047,1721473498831,-1000.0,0.00045,120]
[332710048,1721473498854,-2050.27812416,0.00045,120]
[332710049,1721473498880,-1422.56230271,0.00045,120]
[332710050,1721473498904,-5015.93573979,0.00045,60]
[332710051,1721473498928,-482.7,0.00045,30]
[332710052,1721473498953,-34539.94231922,0.00045,120]
[332710053,1721473498977,-209554.77187334,0.00045,120]
[332710054,1721473499002,-25000.0,0.00045,120]
[332710055,1721473499026,-150.0,0.00045,30]
[332710056,1721473499051,-1052.6935,0.0004514,30]
[332710057,1721473499076,-1891.53181856,0.000452,120]
[332710058,1721473499101,-833.33,0.00045205,30]
[332710059,1721473499126,-755.13,0.00045205,120]
[332710060,1721473499151,-755.13,0.00045205,120]
[332710061,1721473499176,-755.13,0.00045205,120]
[332710062,1721473499200,-755.13,0.00045205,120]
[332710063,1721473499225,-755.13,0.00045205,120]
[332710064,1721473499248,-755.13,0.00045205,120]
[332710065,1721473499274,-755.13,0.00045205,120]
[332710066,1721473499298,-755.13,0.00045205,120]
[332710067,1721473499324,-755.13,0.00045205,120]
[332710068,1721473499348,-755.13,0.00045205,120]
[332710069,1721473499373,-755.13,0.00045205,120]
[332710070,1721473499399,-755.13,0.00045205,120]
[332710071,1721473499424,-755.13,0.00045205,120]
[332710072,1721473499448,-755.13,0.00045205,120]
[332710073,1721473499473,-755.13,0.00045205,120]
[332710074,1721473499498,-755.13,0.00045205,120]
[332710075,1721473499523,-755.13,0.00045205,120]
[332710076,1721473499548,-755.13,0.00045205,120]
[332710077,1721473499577,-755.13,0.00045205,120]
[332710078,1721473499603,-755.13,0.00045205,120]
[332710079,1721473499628,-755.13,0.00045205,120]
[332710080,1721473499652,-755.13,0.00045205,120]
[332710081,1721473499677,-755.13,0.00045205,120]
[332710082,1721473499702,-755.33917094,0.00045205,120]
[332710083,1721473499727,-151.0,0.0004526,120]
[332710084,1721473499752,-654.0,0.00045311,120]
[332710085,1721473499776,-151.0,0.0004537,120]
[332710086,1721473499802,-1250.0,0.00045479,120]
[332710087,1721473499826,-1000000.0,0.000455,120]
[332710088,1721473499852,-1300.0,0.000455,120]
[332710089,1721473499877,-30000.0,0.000455,120]
[332710090,1721473499902,-4545.29247986,0.000456,120]
[332710091,1721473499927,-2698.0,0.00045778,54]
[332710092,1721473499951,-196.46995048,0.000458,30]
[332710093,1721473499976,-78176.67624133,0.0004588,60]
[332710094,1721473500001,-214.92563168,0.000459,60]
[332710095,1721473500026,-2659.93908262,0.000459,120]
[332710096,1721473500051,-151.0,0.00045918,120]
[332710097,1721473500077,-50000.0,0.0004595,30]
[332710098,1721473500102,-410.0,0.00045986,120]
[332710099,1721473500128,-416.41852811,0.00045999,120]
[332710100,1721473500153,-1000.0,0.00045999,120]
[332710101,1721473500180,-50000.0,0.00046,36]
[332710102,1721473500205,-850.0,0.00046,120]
[332710103,1721473500231,-403.11141086,0.00046,120]
[332710104,1721473500256,-1000000.0,0.00046,120]
[332710105,1721473500281,-1000.0,0.00046,30]
[332710106,1721473500307,-2961.66112098,0.00046,30]
[332710107,1721473500335,-2000.0,0.00046,60]
[332710108,1721473500360,-2000.0,0.00046,120]
[332710109,1721473500386,-893.30900619,0.00046,120]
[332710110,1721473500412,-79577.0,0.00046,30]
[332710111,1721473500438,-1000.0,0.00046,120]
[332710112,1721473500462,-1002.18,0.00046,120]
[332710113,1721473500487,-1000000.0,0.00046,120]
[332710114,1721473500513,-1000000.0,0.00046,120]
[332710115,1721473500538,-247.47,0.00046,120]
[332710116,1721473500568,-50000.0,0.00046,30]
[332710117,1721473500594,-1000000.0,0.00046,120]
[332710118,1721473500620,-311.1,0.00046,30]
[332710119,1721473500647,-6000.0,0.00046,120]
[332710120,1721473500673,-10100.53508732,0.00046,30]
[332710121,1721473500699,-754.25,0.00046,30]
[332710122,1721473500725,-1171.9794388,0.00046,30]
[332710123,1721473500751,-725.17934826,0.00046,120]
[332710124,1721473500989,-150.0,0.00046,120]
[332710125,1721473501014,-1984.0,0.00046,120]
[332710126,1721473501038,-5000.0,0.00046,120]
[332710127,1721473501064,-169.3,0.00046,96]
[332710128,1721473501089,-2599.2355855,0.00046,120]
[332710129,1721473501113,-150.63958694,0.00046,30]
[332710130,1721473501139,-195.45440855,0.00046,120]
[332710131,1721473501163,-1000.0,0.00046,120]
[332710132,1721473501188,-5146.12966885,0.00046,120]
[332710133,1721473501212,-209.50642767,0.0004602,120]
[332710134,1721473501236,-17290.33988478,0.00046022,30]
[332710135,1721473501262,-306099.53304741,0.00046023,30]
[332710136,1721473501286,-833.33,0.00046027,30]
[332710137,1721473501312,-174.9110668,0.00046034,30]
[332710138,1721473501336,-188.23981666,0.00046049,30]
[332710139,1721473501361,-188.23981666,0.00046057,30]
[332710140,1721473501385,-894.71398133,0.00046064,30]
[332710141,1721473501409,-383.72129203,0.00046066,30]
[332710142,1721473501435,-174.9110668,0.00046068,30]
[332710143,1721473501460,-165.63955251,0.0004607,30]
[332710144,1721473501486,-928.81629596,0.00046072,30]
[332710145,1721473501511,-80650.02773288,0.00046078,30]
[332710146,1721473501536,-17290.33988478,0.00046085,30]
[332710147,1721473501565,-928.81629596,0.00046088,30]
[332710148,1721473501590,-383.72129203,0.00046093,30]
[332710149,1721473501616,-306099.53304741,0.00046094,30]
[332710150,1721473501642,-28954.11311095,0.00046097,30]
[332710151,1721473501667,-299.66919862,0.00046097,30]
[332710152,1721473501691,-24455.85502805,0.000461,60]
[332710153,1721473501715,-894.71398133,0.00046108,30]
[332710154,1721473501739,-2902.12002783,0.00046111,30]
[332710155,1721473501764,-165.63955251,0.00046115,30]
[332710156,1721473501788,-28954.11311095,0.00046117,30]
[332710157,1721473501812,-80650.02773288,0.00046117,30]
[332710158,1721473501838,-299.66919862,0.00046123,30]
[332710159,1721473501866,-928.81629596,0.00046133,30]
[332710160,1721473501891,-383.72129203,0.00046146,30]
[332710161,1721473501917,-165.63955251,0.00046149,30]
[332710162,1721473501942,-1002.0,0.0004615,30]
[332710163,1721473501969,-17290.33988478,0.0004615,30]
[332710164,1721473501994,-894.71398133,0.00046158,30]
[332710165,1721473502020,-582.13891345,0.0004616,30]
[332710166,1721473502045,-58061.24201271,0.00046161,30]
[332710167,1721473502070,-306099.53304741,0.00046162,30]
[332710168,1721473502097,-639.53548672,0.00046164,30]
[332710169,1721473502123,-174.9110668,0.00046165,30]
[332710170,1721473502148,-299.66919862,0.00046165,30]
[332710171,1721473502174,-244692.23479444,0.00046165,30]
[332710172,1721473502199,-894.71398133,0.00046166,30]
[332710173,1721473502224,-414.09888128,0.00046166,30]
[332710174,1721473502248,-80650.02773288,0.00046167,30]
[332710175,1721473502274,-58061.24201271,0.00046167,30]
[332710176,1721473502301,-639.53548672,0.00046167,30]
[332710177,1721473502327,-383.72129203,0.00046168,30]
[332710178,1721473502353,-499.44866436,0.00046173,30]
[332710179,1721473502379,-582.13891345,0.00046174,30]
[332710180,1721473502403,-17290.33988478,0.00046176,30]
[332710181,1721473502428,-217771.87378827,0.00046176,30]
[332710183,1721473513959,-500.0,0.00041164,30]
[332710184,1721473513985,-1881.90080744,0.0004602,120]
[332710185,1721473514010,-26920.36100617,0.00046176,30]
[332710186,1721473514034,-582.13891345,0.00046177,30]
[332710187,1721473514059,-28954.11311095,0.0004618,30]
[332710188,1721473514082,-582.13891345,0.00046182,30]
[332710189,1721473514107,-928.81629596,0.00046183,30]
[332710190,1721473514130,-165.63955251,0.00046184,30]
[332710191,1721473514154,-172.98260254,0.00046185,30]
[332710192,1721473514177,-2902.12002783,0.00046187,30]
[332710193,1721473514202,-244692.23479444,0.00046191,30]
[332710194,1721473514226,-299.66919862,0.00046192,30]
[332710195,1721473514251,-306099.53304741,0.00046199,30]
[332710196,1721473514274,-414.09888128,0.00046199,30]
[332710197,1721473514298,-58061.24201271,0.00046207,30]
[332710198,1721473514323,-174.9110668,0.00046208,30]
[332710199,1721473514347,-299.66919862,0.0004621,30]
[332710200,1721473514371,-80650.02773288,0.00046211,30]
[332710201,1721473514396,-188.23981666,0.00046211,30]
[332710202,1721473514421,-188.23981666,0.00046214,30]
[332710203,1721473514445,-10558.08564917,0.00046214,30]
[332710204,1721473514470,-174.9110668,0.00046215,30]
[332710205,1721473514495,-2902.12002783,0.00046218,30]
[332710206,1721473514520,-1455.34728363,0.0004622,30]
[332710207,1721473514544,-9067.88365064,0.00046224,30]
[332710208,1721473514571,-244692.23479444,0.00046229,30]
[332710209,1721473514596,-2902.12002783,0.00046232,30]
[332710210,1721473514622,-28954.11311095,0.00046237,30]
[332710211,1721473514650,-306099.53304741,0.0004624,30]
[332710212,1721473514676,-499.44866436,0.00046246,30]
[332710213,1721473514700,-928.81629596,0.00046247,30]
[332710214,1721473514724,-172.98260254,0.00046247,30]
[332710215,1721473514748,-172.98260254,0.00046253,30]
[332710216,1721473514773,-80650.02773288,0.00046262,30]
[332710217,1721473514798,-582.13891345,0.00046263,30]
[332710218,1721473514824,-1455.34728363,0.00046268,30]
[332710219,1721473514848,-414.09888128,0.00046278,30]
[332710220,1721473514874,-165.63955251,0.0004628,30]
[332710221,1721473514900,-17290.33988478,0.00046282,30]
[332710222,1721473514926,-894.71398133,0.00046285,30]
[332710223,1721473514952,-2902.12002783,0.00046286,30]
[332710224,1721473514977,-383.72129203,0.0004629,30]
[332710225,1721473515001,-1455.34728363,0.0004629,30]
[332710226,1721473515293,-244692.23479444,0.00046292,30]
[332710227,1721473515319,-9067.88365064,0.00046292,30]
[332710228,1721473515344,-188.23981666,0.00046296,30]
[332710229,1721473515369,-28954.11311095,0.00046297,30]
[332710230,1721473515394,-58061.24201271,0.00046299,30]
[332710231,1721473515418,-150.0,0.000463,30]
[332710232,1721473515443,-1250.0,0.00046301,120]
[332710233,1721473515469,-1000000.0,0.000465,120]
[332710234,1721473515493,-1389.82423121,0.000465,120]
[332710235,1721473515519,-9747.0,0.000465,30]
[332710236,1721473515543,-1211.437618,0.000465,30]
[332710237,1721473515570,-1688.0,0.00046575,120]
[332710238,1721473515594,-152.0,0.00046575,60]
[332710239,1721473515619,-151.0,0.00046575,120]
[332710240,1721473515644,-129299.4,0.00046575,60]
[332710241,1721473515669,-6644.0,0.000466,30]
[332710242,1721473515693,-96605.45126712,0.000466,120]
[332710243,1721473515717,-8000.0,0.000466,120]
[332710244,1721473515743,-1688.0,0.00046712,120]
[332710245,1721473515768,-151.0,0.00046712,120]
[332710246,1721473515793,-656.30205914,0.00046716,120]
[332710247,1721473515822,-833.33,0.00046849,30]
[332710248,1721473515848,-1688.0,0.00046849,120]
[332710249,1721473515873,-7049.9,0.0004689,116]
[332710250,1721473515898,-1688.0,0.00046986,120]
[332710251,1721473515927,-50000.0,0.00047,47]
[332710252,1721473515952,-2000.03329067,0.00047,120]
[332710253,1721473515977,-1000000.0,0.00047,120]
[332710254,1721473516002,-180.55673616,0.00047,120]
[332710255,1721473516026,-3114.0,0.00047,120]
[332710256,1721473516050,-867.77601819,0.00047,120]
[332710257,1721473516075,-600.0,0.00047,120]
[332710258,1721473516098,-1055.14208466,0.00047,60]
[332710259,1721473516126,-2704.0,0.00047,120]
[332710260,1721473516149,-150.0,0.00047,120]
[332710261,1721473516173,-284.98068604,0.00047,120]
[332710262,1721473516197,-290.96537587,0.00047,120]
[332710263,1721473516220,-1000.0,0.00047,120]
[332710264,1721473516244,-842.519,0.00047023,110]
[332710265,1721473516268,-1250.0,0.00047123,120]
[332710266,1721473516292,-1688.0,0.00047123,120]
[332710267,1721473516316,-40000.0,0.000472,120]
[332710268,1721473516342,-151.0,0.00047233,120]
[332710269,1721473516366,-1688.0,0.0004726,120]
[332710270,1721473516391,-1688.0,0.00047397,120]
[332710271,1721473516415,-1000.0,0.00047399,120]
[332710272,1721473516439,-3187228.23068972,0.000474,120]
[332710273,1721473516464,-1000.00000099,0.00047423,120]
[332710274,1721473516488,-2751.43300859,0.0004748,120]
[332710275,1721473516514,-1000000.0,0.000475,120]
[332710276,1721473516539,-150.0,0.000475,120]
[332710277,1721473516564,-22710.3413182,0.000475,120]
[332710278,1721473516593,-1688.0,0.00047534,120]
[332710279,1721473516628,-5100.0,0.0004761,120]
[332710280,1721473516663,-833.33,0.00047671,30]
[332710281,1721473516697,-1688.0,0.00047671,120]
[332710282,1721473516731,-1688.0,0.00047808,120]
[332710283,1721473516766,-151.0,0.0004789,120]
[332710284,1721473516800,-1250.0,0.00047945,120]
[332710285,1721473516837,-1688.0,0.00047945,120]
[332710286,1721473516871,-150.44771784,0.0004795,120]
[332710287,1721473516909,-50000.0,0.00048,38]
[332710288,1721473516942,-3065.0,0.00048,30]
[332710289,1721473516980,-527864.73505837,0.00048,120]
[332710290,1721473526366,-500.0,0.00041712,30]
[332710291,1721473526402,-300.0,0.0004226,30]
[332710292,1721473526440,-472135.26494163,0.00048,120]
[332710293,1721473526473,-2000.0,0.00048,120]
[332710294,1721473526505,-52000.0,0.00048,35]
[332710295,1721473526537,-150.0,0.00048,120]
[332710296,1721473526574,-2599.23558551,0.00048,120]
[332710297,1721473526609,-620000.0,0.00048,120]
[332710298,1721473526644,-13448.0,0.00048,120]
[332710299,1721473526678,-470.59287888,0.00048,120]
[332710300,1721473526713,-787.61631193,0.00048,120]
[332710301,1721473526746,-1000.0,0.00048,120]
[332710302,1721473526780,-236.03,0.00048,120]
[332710303,1721473526813,-339.64947545,0.00048,120]
[332710304,1721473526849,-150.0,0.00048,30]
[332710305,1721473526883,-151.0,0.00048055,120]
[332710306,1721473526917,-1688.0,0.00048082,120]
[332710307,1721473526950,-24455.85502805,0.000481,60]
[332710308,1721473526986,-50000.0,0.000482,120]
[332710309,1721473527020,-1688.0,0.00048219,120]
[332710310,1721473527056,-1000000.0,0.00048247,120]
[332710311,1721473527089,-1000.0,0.000483,30]
[332710312,1721473527122,-1688.0,0.00048356,120]
[332710313,1721473527155,-2545461.48026661,0.000484,120]
[332710314,1721473527191,-1000000.0,0.0004844,30]
[332710315,1721473527223,-500.0,0.00048452,30]
[332710316,1721473527257,-833.33,0.00048493,30]
[332710317,1721473527291,-1688.0,0.00048493,120]
[332710318,1721473527326,-275.28621852,0.000485,90]
[332710319,1721473527360,-151.0,0.00048548,120]
[332710320,1721473527396,-1688.0,0.0004863,120]
[332710321,1721473527429,-875.1469736,0.0004866,120]
[332710322,1721473527460,-154246.7620479,0.000487,30]
[332710323,1721473527493,-150.0,0.0004875,30]
[332710324,1721473527526,-1250.0,0.00048767,120]
[332710325,1721473527558,-1688.0,0.00048767,120]
[332710326,1721473527598,-74370.99838704,0.000488,120]
[332710327,1721473527632,-151.83020704,0.000489,120]
[332710328,1721473527665,-1688.0,0.00048904,120]
[332710329,1721473527699,-150.44771784,0.0004895,120]
[332710330,1721473527733,-50000.0,0.00049,49]
[332710331,1721473527765,-734.71406223,0.00049,30]
[332710332,1721473527799,-50000.0,0.00049,120]
[332710333,1721473527832,-81719.52101516,0.00049,120]
[332710334,1721473528129,-100000.0,0.00049,120]
[332710335,1721473528163,-50000.0,0.00049,35]
[332710336,1721473528197,-1000000.0,0.00049,120]
[332710337,1721473528229,-1000000.0,0.00049,120]
[332710338,1721473528263,-20000.0,0.00049,120]
[332710339,1721473528294,-5016.20566636,0.00049,60]
[332710340,1721473528325,-171.72831349,0.00049,30]
[332710341,1721473528359,-16737.0,0.00049,120]
[332710342,1721473528390,-100000.0,0.00049,30]
[332710343,1721473528422,-150.0,0.00049,120]
[332710344,1721473528454,-205789.33527558,0.00049,120]
[332710345,1721473528488,-9417.52672312,0.00049,120]
[332710346,1721473528520,-1000.0,0.00049,120]
[332710347,1721473528552,-20086.30774842,0.00049,120]
[332710348,1721473528589,-1688.0,0.00049041,120]
[332710349,1721473528623,-1688.0,0.00049178,120]
[332710350,1721473528659,-500.0,0.000492,120]
[332710351,1721473528692,-151.0,0.00049205,120]
[332710352,1721473528726,-636.74607218,0.00049315,120]
[332710353,1721473528759,-500.0,0.00049315,120]
[332710354,1721473528791,-500.0,0.00049315,120]
[332710355,1721473528824,-833.33,0.00049315,30]
[332710356,1721473528860,-1688.0,0.00049315,120]
[332710357,1721473529536,1828.31702717,0.00049315,30]
[332710358,1721473529576,217.0014205,0.00049315,30]
[332710359,1721473530253,500.0,0.00039,120]
[332710360,1721473531697,169.3,0.00046,96]
[332710361,1721473533495,500.0,0.00041244,30]
[332710362,1721473535147,500.0,0.00041792,30]
[332710363,1721473536291,150.0,0.00041792,30]
[332710364,1721473537488,500.0,0.0004234,30]
[332710365,1721473538485,76797.31066744,0.00044999,30]
[332710366,1721473539065,600.0,0.00042888,30]
[332710392,1721473650687,770.36,0.00011358,2]
[332710399,1721473657240,-25358.82518167,0.00014,7]
[332710418,1721473771420,-300.0,0.000146,5]
[332710419,1721473771446,-700.0,0.000147,5]
[332710420,1721473771471,-1000.0,0.000148,5]
[332710421,1721473771494,-1400.0,0.000149,5]
[332710422,1721473771517,-300.0,0.00014999,5]
[332710435,1721473831849,-160.72829268,0.00013,2]
[332710436,1721473831859,-155.7,0.00013223,2]
[332710437,1721473831868,-88.07170682,0.00013483,2]
[332710438,1721473831884,-114.27867196,0.00013483,2]
[332710439,1721473831893,-233.68947879,0.00013485,2]
[332710440,1721473831905,-16.31052121,0.00013485,2]
[332710441,1721473831916,-233.68947879,0.00013526,2]
[332710442,1721473832034,-66.31052121,0.00013526,2]
[332710443,1721473832044,-3340.59794699,0.00013527,2]
[332710444,1721473832055,-3164.75000067,0.00013527,2]
[332710445,1721473832067,-1257.21841237,0.00013527,2]
[332710446,1721473832078,-7271.16421813,0.00013527,2]
[332710447,1721473832088,-500.0,0.00013527,2]
[332710448,1721473832098,-171.32,0.00013543,2]
[332710449,1721473832107,-1000.0,0.00013615,2]
[332710450,1721473832117,-499.99,0.00013616,2]
[332710451,1721473832127,-500.0,0.00013619,2]
[332710452,1721473832136,-770.36,0.00013622,2]
[332710453,1721473832146,-674.02229934,0.00013646,2]
[332710454,1721473832166,-325.97770066,0.00013646,2]
[332710455,1721473832176,-151.92270701,0.00013699,2]
[332710456,1721473832188,-25.03729299,0.00013699,2]
[332710457,1721473832197,-200.0,0.00013699,2]
[332710458,1721473832207,-1083.12,0.00013699,2]
[332710459,1721473832216,-250.0,0.00013699,2]
[332710460,1721473832226,-179.92,0.00013699,2]
[332710461,1721473832236,-1273.51084788,0.00013699,2]
[332710463,1721473832245,-8763.3009767,0.000138,2]
[332710464,1721473832257,-4032.2664054,0.000138,2]
[332710465,1721473832266,-890.6234166,0.00013879,2]
[332710466,1721473832276,-656.9136,0.000139,2]
[332710467,1721473832286,-1000.0,0.00013973,2]
[332710468,1721473832295,-183.29710983,0.00014283,2]
[332710469,1721473832305,-3820.65653375,0.00014425,2]
[332710470,1721473832317,-919.70999,0.00014425,2]
[332710471,1721473832346,-500.0,0.00014425,2]
[332710473,1721473832357,-6455.38724804,0.00014425,2]
[332710475,1721473832369,-704.92261432,0.00014425,2]
[332710477,1721473832381,-2332.32978955,0.00014425,2]
[332710478,1721473832394,-713.07366266,0.00014425,2]
[332710479,1721473832406,-893.59727248,0.00014425,2]
[332710480,1721473832419,-2606.2618892,0.00014425,2]
[332710481,1721473832429,-138.00519656,0.00014425,2]
[332710496,1721473837872,-330.40504868,0.00013879,2]
[332710497,1721473837882,-683.81604884,0.00013979,2]
[332710498,1721473837892,-5686.99480344,0.00014425,2]
[332710499,1721473837902,-202.299,0.00014425,2]
[332710500,1721473837912,-457.6198296,0.00014425,2]
[332710501,1721473837924,-3816.08456684,0.00014425,2]
[332710502,1721473837935,-645.13960356,0.00014425,2]
[332710503,1721473837945,-357.04425673,0.00014425,2]
[332710504,1721473837994,-1310.95574327,0.00014425,2]
[332710505,1721473838004,-1201.0,0.00014425,2]
[332710506,1721473838014,-202.5999635,0.0001443,2]
[332710507,1721473838024,-254.68905289,0.0001443,2]
[332710508,1721473838034,-529.48196047,0.00014451,2]
[332710509,1721473838044,-203.08849895,0.00014519,2]
[332710510,1721473838053,-6741.3543,0.00014545,2]
[332710511,1721473838064,-150.0,0.00014545,2]
[332710512,1721473838074,-227.4651143,0.00014579,2]
[332710513,1721473838084,-6683.8,0.000146,2]
[332710514,1721473838095,-6577.7434,0.000146,2]
[332710515,1721473838106,-1000.0,0.000146,2]
[332710516,1721473838115,-2500.0,0.000146,2]
[332710517,1721473838127,-176.96,0.00014612,2]
[332710518,1721473838137,-151.0,0.00014645,2]
[332710519,1721473838146,-151.0,0.00014645,2]
[332710520,1721473838156,-151.0,0.00014645,2]
[332710521,1721473838166,-151.0,0.00014645,2]
[332710522,1721473838175,-151.0,0.00014645,2]
[332710523,1721473838185,-151.0,0.00014645,2]
[332710524,1721473838194,-2522.8216,0.00014647,2]
[332710525,1721473838204,-16010.1839,0.00014659,2]
[332710526,1721473838214,-151.0,0.00014659,2]
[332710527,1721473838223,-151.0,0.00014659,2]
[332710528,1721473838233,-151.0,0.00014659,2]
[332710529,1721473838242,-151.0,0.00014659,2]
[332710530,1721473838252,-151.0,0.00014659,2]
[332710531,1721473838261,-413.91370066,0.00014667,2]
[332710532,1721473838272,-164.45815869,0.00014688,2]
[332710533,1721473838282,-2000.0,0.00014689,2]
[332710534,1721473838291,-200.0,0.00014689,2]
[332710535,1721473838301,-7762.3759,0.000147,2]
[332710536,1721473838311,-1467.8283,0.000147,2]
[332710537,1721473838320,-1000.0,0.000147,2]
[332710538,1721473838331,-617.9493,0.000147,2]
[332710539,1721473838341,-297.44827264,0.000147,2]
[332710540,1721473838352,-2429.0462,0.000147,2]
[332710541,1721473838362,-262.499965,0.000147,2]
[332710542,1721473838371,-500.0,0.000147,2]
[332710543,1721473838380,-24635.4106,0.000147,2]
[332710544,1721473838390,-151.0,0.000147,2]
[332710545,1721473838399,-151.0,0.000147,2]
[332710546,1721473838409,-151.0,0.000147,2]
[332710547,1721473838418,-151.0,0.000147,2]
[332710548,1721473838428,-301.999999,0.000147,2]
[332710549,1721473838438,-151.0,0.000147,2]